[Event "BL 2016-17"]
[Site "Germany"]
[Date "2017.03.19"]
[Round "10"]
[White "Johansson, Linus"]
[Black "Socko, Bartosz"]
[Result "1/2-1/2"]
[ECO "A22"]
[WhiteElo "2408"]
[BlackElo "2598"]
[Annotator "TA RC"]
[PlyCount "182"]
[EventDate "2017.??.??"]
[EventType "team-tourn"]
[EventCountry "GER"]
[SourceTitle "playchess.com"]
[Source "ChessBase"]
[SourceQuality "1"]
[WhiteTeam "Bayern München"]
[BlackTeam "TU Dresden"]
[TimeControl "40/6000+30:3000+30"]

1. c4 {[%emt 0:00:00]} e5 {[%emt 0:00:05]} 2. Nc3 {[%emt 0:00:00]} Nf6 {[%emt 0:00:07]} 3. g3 {[%emt 0:00:00]} c6 {[%emt 0:00:15]} 4. d4 {[%emt 0:05:12]} exd4 {[%emt 0:00:21]} 5. Qxd4 {[%emt 0:00:03]} d5 {[%emt 0:00:10]} 6. Bg2 {[%emt 0:07:22]} dxc4 {[%emt 0:00:39]} 7. Qxc4 {[%emt 0:00:53]} Be6 {[%emt 0:00:08]} 8. Qa4 {[%emt 0:01:28]} Nbd7 {[%emt 0:00:36]} 9. Nf3 {[%emt 0:01:08]} Bc5 {[%emt 0:00:08]} 10. O-O {[%emt 0:03:16]} O-O {[%emt 0:00:06]} 11. Qc2 {[%emt 0:00:53]} Qe7 {[%emt 0:07:18]} 12. b3 {[%emt 0:02:42]} Rfe8 {[%emt 0:02:02]} 13. Bb2 {[%emt 0:00:25]} Ba3 {[%emt 0:10:56]} 14. h3 {[%emt 0:05:00]} Bxb2 {[%emt 0:03:39]} 15. Qxb2 {[%emt 0:01:24]} Nc5 {[%emt 0:08:57]} 16. Nd4 {[%emt 0:22:50]} Rad8 {[%emt 0:00:48]} 17. Rad1 {[%emt 0:00:48]} Bc8 {[%emt 0:17:44]} 18. Qa3 {[%emt 0:06:03]} Qe5 {[%emt 0:01:14]} 19. e3 {[%emt 0:00:28]} Na6 {[%emt 0:08:19]} 20. b4 {[%emt 0:15:30]} Nxb4 {[%emt 0:15:25]} 21. Qxb4 {[%emt 0:06:58]} c5 {[%emt 0:00:13]} 22. Qa4 {[%emt 0:00:39]} cxd4 {[%emt 0:00:06]} 23. Rxd4 {[%emt 0:01:24]} a6 {[%emt 0:02:27]} 24. Rfd1 {[%emt 0:03:04]} Rxd4 {[%emt 0:04:11]} 25. Qxd4 {[%emt 0:04:14]} Qc7 {[%emt 0:00:54]} 26. a4 {[%emt 0:04:46]} h6 {[%emt 0:01:47]} 27. Nd5 {[%emt 0:01:42]} Nxd5 {[%emt 0:00:24]} 28. Qxd5 {[%emt 0:00:04]} a5 {[%emt 0:06:51]} 29. Qd6 {[%emt 0:05:46]} Qc2 {[%emt 0:01:17]} 30. Rd4 {[%emt 0:00:09]} Qb1+ {[%emt 0:04:16]} 31. Kh2 {[%emt 0:00:07]} Be6 {[%emt 0:00:50]} 32. Bd5 {[%emt 0:03:08]} Qf1 {[%emt 0:04:23]} 33. Rd2 {[%emt 0:03:02]} Qxh3+ {[%emt 0:01:16]} 34. Kg1 {[%emt 0:00:04]} Bxd5 {[%emt 0:02:28]} 35. Rxd5 {[%emt 0:00:56]} Rc8 {[%emt 0:01:08]} 36. Rc5 {[%emt 0:01:50]} g6 {[%emt 0:01:45]} 37. Qd5 {[%emt 0:01:41]} b6 {[%emt 0:01:31]} 38. Rxc8+ {[%emt 0:01:49]} Qxc8 {[%emt 0:00:07]} 39. Qb5 {[%emt 0:00:34]} Qe6 {[%emt 0:00:35]} 40. Kg2 {[%emt 0:00:59]} Kf8 {[%emt 0:50:08]} 41. Kg1 {[%emt 0:51:08]} Ke7 {[%emt 0:00:27]} 42. Qd3 {[%emt 0:00:00]} Qe5 {[%emt 0:00:00]} 43. Qb1 {[%emt 0:00:00]} Qe6 {[%emt 0:00:00]} 44. Qd3 {[%emt 0:00:00]} h5 {[%emt 0:00:00]} 45. Qd4 {[%emt 0:00:00]} Qd6 {[%emt 0:00:00]} 46. Qe4+ {[%emt 0:00:00]} Kf6 {[%emt 0:00:00]} 47. Qe8 {[%emt 0:00:00]} Kg7 {[%emt 0:00:00]} 48. Kg2 {[%emt 0:00:00]} Qe6 {[%emt 0:00:00]} 49. Qb5 {[%emt 0:00:00]} Kf8 {[%emt 0:00:00]} 50. Kg1 {[%emt 0:00:00]} Ke7 {[%emt 0:00:00]} 51. Kg2 {[%emt 0:00:00]} Qd6 {[%emt 0:00:00]} 52. Kg1 {[%emt 0:00:00]} Qe6 {[%emt 0:00:00]} 53. Kg2 {[%emt 0:00:00]} Kd8 {[%emt 0:00:00]} 54. Kg1 {[%emt 0:00:00]} Kc7 {[%emt 0:00:00]} 55. Kh2 {[%emt 0:00:00]} Kb7 {[%emt 0:00:00]} 56. Kg1 {[%emt 0:00:00]} Kb8 {[%emt 0:00:00]} 57. Kg2 {[%emt 0:00:00]} Kc7 {[%emt 0:00:00]} 58. Kh2 {[%emt 0:00:00]} f6 {[%emt 0:00:00]} 59. Qd3 {[%emt 0:00:00]} f5 {[%emt 0:00:00]} 60. Qd4 {[%emt 0:00:00]} Kb7 {[%emt 0:00:00]} 61. Qd1 {[%emt 0:00:00]} b5 {[%emt 0:00:00]} 62. axb5 {[%emt 0:00:00]} Kb6 {[%emt 0:00:00]} 63. Qd8+ {[%emt 0:00:00]} Kxb5 {[%emt 0:00:00]} 64. Qb8+ {[%emt 0:00:00]} Qb6 {[%emt 0:00:00]} 65. Qe5+ {[%emt 0:00:00]} Kc4 {[%emt 0:00:00]} 66. Qa1 {[%emt 0:00:00]} Qc5 {[%emt 0:00:00]} 67. Qf1+ {[%emt 0:00:00]} Kb3 {[%emt 0:00:00]} 68. Qb1+ {[%emt 0:00:00]} Ka4 {[%emt 0:00:00]} 69. Qb2 {[%emt 0:00:00]} Qb4 {[%emt 0:00:00]} 70. Qa2+ {[%emt 0:00:00]} Kb5 {[%emt 0:00:00]} 71. Qd5+ {[%emt 0:00:00]} Qc5 {[%emt 0:00:00]} 72. Qb3+ {[%emt 0:00:00]} Kc6 {[%emt 0:00:00]} 73. Qe6+ {[%emt 0:00:00]} Qd6 {[%emt 0:00:00]} 74. Qc4+ {[%emt 0:00:00]} Kb6 {[%emt 0:00:00]} 75. Qb3+ {[%emt 0:00:00]} Kc7 {[%emt 0:00:00]} 76. Qc3+ {[%emt 0:00:00]} Kb6 {[%emt 0:00:00]} 77. Qb3+ {[%emt 0:00:00]} Ka6 {[%emt 0:00:00]} 78. Qc4+ {[%emt 0:00:00]} Ka7 {[%emt 0:00:57]} 79. Qf7+ {[%emt 0:00:00]} Kb8 {[%emt 0:00:07]} 80. Qb3+ {[%emt 0:00:00]} Kc8 {[%emt 0:02:50]} 81. Qc4+ {[%emt 0:00:00]} Kd8 {[%emt 0:00:41]} 82. Qg8+ {[%emt 0:00:00]} Kd7 {[%emt 0:00:08]} 83. Qf7+ {[%emt 0:00:00]} Kc6 {[%emt 0:00:22]} 84. Qc4+ {[%emt 0:00:00]} Qc5 {[%emt 0:00:51]} 85. Qe6+ {[%emt 0:00:00]} Kb5 {[%emt 0:00:44]} 86. Qb3+ {[%emt 0:00:00]} Ka6 {[%emt 0:00:11]} 87. Qe6+ {[%emt 0:00:00]} Qb6 {[%emt 0:00:07]} 88. Qc4+ {[%emt 0:00:00]} Ka7 {[%emt 0:04:51]} 89. Qf7+ {[%emt 0:00:00]} Ka6 {[%emt 0:02:51]} 90. Qc4+ {[%emt 0:00:00]} Qb5 {[%emt 0:00:31]} 91. Qe6+ {[%emt 0:00:00]} Qb6 {[%emt 0:01:58]} 1/2-1/2

[Event "BL 2016-17"]
[Site "Jenbach"]
[Date "2017.04.21"]
[Round "10"]
[White "Hajnal, Zoltan"]
[Black "Schwarhofer, Christopher"]
[Result "0-1"]
[ECO "C11"]
[WhiteElo "2382"]
[BlackElo "2375"]
[Annotator "NA"]
[PlyCount "94"]
[EventDate "2017.??.??"]
[EventCountry "AUT"]
[SourceTitle "playchess.com"]
[Source "ChessBase"]
[SourceQuality "1"]
[WhiteTeam "St. Valentin"]
[BlackTeam "Nickelsdorf"]
[TimeControl "40/5400+30:1800+30"]

1. e4 $146 {[%emt 0:00:00]} (1. d4 Nf6 2. Nf3 d5 3. e3 e6 4. Bd3 b6 5. O-O Bb7 6. Nbd2 Bd6 7. Qe2 Ne4 8. b3 O-O 9. Bb2 Nd7 10. c4 a5 11. Rfd1 Qe7 12. Rac1 a4 13. Nf1 axb3 14. axb3 Ra2 15. Bb1 Rxb2 16. Qxb2 {½-½ (39) Kramnik,V (2809)-Adams,M (2748) London 2016}) 1... e6 {[%emt 0:00:06]} 2. d4 {[%emt 0:00:00]} d5 {[%emt 0:00:05]} 3. Nc3 {[%emt 0:00:00]} Nf6 {[%emt 0:00:23]} 4. e5 {[%emt 0:03:50]} Nfd7 {[%emt 0:02:19]} 5. f4 {[%emt 0:00:20]} c5 {[%emt 0:00:11]} 6. Nf3 {[%emt 0:00:06]} Nc6 {[%emt 0:00:08]} 7. Be3 {[%emt 0:00:15]} Qb6 {[%emt 0:00:57]} 8. Na4 {[%emt 0:00:39]} Qa5+ {[%emt 0:00:19]} 9. c3 {[%emt 0:00:07]} b6 {[%emt 0:01:24]} 10. Bd2 {[%emt 0:04:56]} c4 {[%emt 0:01:45]} 11. b4 {[%emt 0:01:48]} Qa6 {[%emt 0:02:58] C11: French: Classical System: 4 e5 and 4 Bg5 dxe4} (11... Nxb4 12. cxb4 Bxb4 13. Qc2 Bxd2+ 14. Nxd2 b5 15. Nc3 b4 16. Nd1 f6 17. Nf3 fxe5 18. fxe5 Bb7 19. a3 {1-0 (34) Kokarev,D (2634)-Savchenko,B (2613) Khanty-Mansiysk 2016}) 12. g4 {[%emt 0:12:41]} Qb7 $146 {[%emt 0:18:21]} (12... h5 13. gxh5 Rxh5 14. Ng5 Rh8 15. f5 exf5 16. Bg2 Ne7 17. e6 fxe6 18. Nxe6 Qb7 19. Bf4 {1-0 (37) Paehtz,E (2276)-Andriasian,S Oropesa del Mar 1999}) 13. Bg2 {[%emt 0:02:51]} a5 {[%emt 0:11:03]} 14. b5 {[%emt 0:15:44]} Na7 {[%emt 0:06:07]} 15. Rb1 {[%emt 0:01:03]} Be7 {[%emt 0:01:11]} 16. O-O {[%emt 0:07:28]} Nf8 {[%emt 0:13:14]} 17. Nb2 {[%emt 0:12:00]} Nxb5 {[%emt 0:04:03]} 18. Nxc4 {[%emt 0:01:55]} Qc6 {[%emt 0:04:59]} 19. Nxb6 {[%emt 0:02:35]} Qxb6 $14 {[%emt 0:01:53]} 20. a4 {[%emt 0:00:23]} Bd7 {[%emt 0:01:31]} 21. axb5 {[%emt 0:02:59]} Bxb5 {[%emt 0:01:41]} 22. Qb3 {[%emt 0:03:29]} Rb8 {[%emt 0:00:18]} 23. Rb2 {[%emt 0:13:34]} a4 {[%emt 0:18:36]} 24. Qa2 {[%emt 0:04:54]} a3 {[%emt 0:00:06]} 25. Rb3 {[%emt 0:00:12]} Qa6 {[%emt 0:00:24]} 26. Rfb1 {[%emt 0:00:32]} Nd7 {[%emt 0:00:08]} 27. Bf1 {[%emt 0:07:56]} Bxf1 {[%emt 0:00:06]} 28. Rxb8+ {[%emt 0:00:04]} Nxb8 {[%emt 0:00:03]} 29. Rxf1 {[%emt 0:00:07]} O-O {[%emt 0:00:44]} 30. Rf2 {[%emt 0:00:22]} Nd7 {[%emt 0:01:16]} 31. Bc1 {[%emt 0:00:48]} Rb8 {[%emt 0:02:05]} 32. Kg2 {[%emt 0:00:20]} Qa4 {[%emt 0:00:58]} 33. Rc2 {[%emt 0:00:37]} Nb6 {[%emt 0:01:02]} 34. Qb1 {[%emt 0:01:28]} Qc4 {[%emt 0:01:30]} 35. Ra2 {[%emt 0:00:45]} Qxc3 {[%emt 0:01:59]} 36. Rc2 {[%emt 0:00:26]} Qb4 {[%emt 0:00:13]} 37. Qa2 {[%emt 0:00:16]} Nc4 {[%emt 0:00:22]} 38. Kf2 {[%emt 0:00:45]} Qa4 {[%emt 0:02:02]} 39. Ke2 {[%emt 0:00:41]} g6 {[%emt 0:01:41]} 40. f5 {[%emt 0:00:00]} Rb3 {[%emt 0:01:23]} 41. Nd2 {[%emt 0:00:54]} Nxd2 {[%emt 0:03:53]} 42. Bxd2 {[%emt 0:01:45]} Qb5+ {[%emt 0:00:29]} 43. Kf2 {[%emt 0:00:14]} Rb2 {[%emt 0:00:40]} 44. Rc8+ {[%emt 0:00:56]} Kg7 {[%emt 0:01:34]} 45. f6+ {[%emt 0:02:49]} Bxf6 {[%emt 0:00:04]} 46. exf6+ {[%emt 0:00:04]} Kxf6 {[%emt 0:00:35]} 47. g5+ {[%emt 0:00:05] Ke5} Kf5 {[%emt 0:01:15]} 0-1

[Event "BL 2016-17"]
[Site "Jenbach"]
[Date "2017.04.21"]
[Round "10"]
[White "Lendwai, Reinhard"]
[Black "Sandhoefner, Florian"]
[Result "1-0"]
[ECO "B97"]
[WhiteElo "2367"]
[BlackElo "2255"]
[Annotator "NA"]
[PlyCount "141"]
[EventDate "2017.??.??"]
[EventCountry "AUT"]
[SourceTitle "playchess.com"]
[Source "ChessBase"]
[SourceQuality "1"]
[WhiteTeam "Nickelsdorf"]
[BlackTeam "St. Valentin"]
[TimeControl "40/5400+30:1800+30"]

1. e4 {[%emt 0:00:00]} c5 {[%emt 0:00:01]} 2. Nf3 {[%emt 0:00:00]} d6 {[%emt 0:00:01]} 3. d4 {[%emt 0:00:06]} cxd4 {[%emt 0:00:02]} 4. Nxd4 {[%emt 0:00:12]} Nf6 {[%emt 0:00:02]} 5. Nc3 {[%emt 0:00:10]} a6 {[%emt 0:00:01]} 6. Bg5 {[%emt 0:00:34]} e6 {[%emt 0:00:02]} 7. f4 {[%emt 0:00:34]} Qb6 {[%emt 0:00:07]} 8. Nb3 {[%emt 0:01:17]} Nbd7 {[%emt 0:00:45]} 9. Qf3 {[%emt 0:01:49]} Qc7 {[%emt 0:01:01]} 10. O-O-O {[%emt 0:01:00]} b5 {[%emt 0:01:03]} 11. Bd3 {[%emt 0:04:07] B97: Sicilian Najdorf: Poisoned Pawn} Bb7 {[%emt 0:02:40]} 12. Rhe1 {[%emt 0:01:56]} Be7 {[%emt 0:04:15]} 13. Kb1 {[%emt 0:05:37]} (13. Qh3 b4 14. Nb1 e5 15. N1d2 a5 16. Kb1 a4 17. Nc1 O-O 18. Ne2 Rfc8 19. Ng3 g6 20. Nc4 {0-1 (29) Kamsky,G (2671)-Topalov,V (2804) Sofia 2006}) 13... O-O {[%emt 0:06:10]} 14. Qh3 $1 {[%emt 0:05:19]} g6 {[%emt 0:08:31]} (14... Rfd8 $14) 15. a3 $146 {[%emt 0:14:11]} (15. e5 dxe5 16. fxe5 Nxe5 17. Qg3 b4 18. Na4 Nfg4 19. Bf4 {1-0 (41) Stuart,A-Van Wieringen,C Netherland 2002}) 15... Rfe8 {[%emt 0:05:06]} 16. Qh4 {[%emt 0:01:46]} Kg7 $2 {[%emt 0:04:53]} (16... Qd8 $1 $14) 17. Re3 {[%emt 0:05:26]} ({But not} 17. e5 $6 dxe5 18. fxe5 Ng8 $14) (17. f5 $18) 17... Ng8 {[%emt 0:08:05]} 18. Rh3 {[%emt 0:03:40]} Nf8 {[%emt 0:01:04]} 19. Bxe7 {[%emt 0:24:19]} Qxe7 {[%emt 0:00:43]} 20. Qxe7 {[%emt 0:02:59]} (20. Qf2 $16) 20... Rxe7 {[%emt 0:00:04]} 21. Na5 {[%emt 0:00:28]} Rd8 {[%emt 0:05:11]} 22. Nxb7 {[%emt 0:01:24]} Rxb7 {[%emt 0:00:02]} 23. Be2 {[%emt 0:00:34]} Kf6 {[%emt 0:03:22]} 24. Rd4 {[%emt 0:04:13]} Ke7 {[%emt 0:03:16]} 25. Rb4 {[%emt 0:01:44]} Rdb8 {[%emt 0:02:49]} 26. b3 {[%emt 0:02:54]} Nf6 {[%emt 0:04:10]} 27. Re3 {[%emt 0:00:02]} N6d7 {[%emt 0:02:42]} 28. a4 {[%emt 0:03:52]} bxa4 {[%emt 0:00:18]} 29. Rxb7 {[%emt 0:03:43]} Rxb7 {[%emt 0:00:06]} 30. Nxa4 {[%emt 0:00:07]} a5 {[%emt 0:00:21]} 31. Rc3 {[%emt 0:03:14]} Rb4 {[%emt 0:01:47]} 32. Bf3 {[%emt 0:04:25]} f5 {[%emt 0:12:36]} 33. exf5 {[%emt 0:01:05]} gxf5 {[%emt 0:00:01]} 34. g3 {[%emt 0:00:21]} e5 {[%emt 0:02:53]} 35. fxe5 {[%emt 0:01:42]} dxe5 {[%emt 0:00:01]} 36. Rc7 {[%emt 0:01:53]} f4 {[%emt 0:03:20]} 37. Nc3 {[%emt 0:00:38]} Rd4 {[%emt 0:04:25]} 38. Ra7 {[%emt 0:00:22]} Rd2 {[%emt 0:00:32]} 39. gxf4 {[%emt 0:01:14]} exf4 {[%emt 0:00:16]} 40. h3 {[%emt 0:00:00]} Ne6 {[%emt 0:01:00]} 41. Nd5+ {[%emt 0:07:38]} Kd6 {[%emt 0:00:57]} 42. Ra6+ {[%emt 0:00:04]} Ke5 {[%emt 0:00:18]} 43. Rxa5 {[%emt 0:00:30]} Ndc5 {[%emt 0:03:44]} 44. Nc7 {[%emt 0:06:44]} Kd4 {[%emt 0:04:03]} 45. Nxe6+ {[%emt 0:00:47]} Nxe6 {[%emt 0:00:03]} 46. Bg4 {[%emt 0:12:03]} Nc5 {[%emt 0:00:41]} 47. c3+ {[%emt 0:00:13]} Kxc3 {[%emt 0:00:47]} 48. Rxc5+ {[%emt 0:00:03]} Kxb3 {[%emt 0:00:03]} 49. Be6+ {[%emt 0:00:33]} Kb4 {[%emt 0:00:31]} 50. Rc4+ {[%emt 0:00:04]} Kb5 {[%emt 0:00:06]} 51. Rxf4 {[%emt 0:00:07]} Rd6 {[%emt 0:00:14]} 52. Re4 {[%emt 0:00:43]} Kc5 {[%emt 0:00:27]} 53. Kc2 {[%emt 0:00:19]} Rd4 {[%emt 0:00:07]} 54. Re3 {[%emt 0:00:25]} Kd6 {[%emt 0:00:03]} 55. Kc3 {[%emt 0:01:21]} Ra4 {[%emt 0:00:34]} 56. Bb3 {[%emt 0:00:21]} Ra7 {[%emt 0:00:40]} 57. Re6+ {[%emt 0:01:09]} Kd7 {[%emt 0:00:12]} 58. Re4 {[%emt 0:03:45]} Ra6 {[%emt 0:01:28]} 59. Rh4 {[%emt 0:00:32]} h6 {[%emt 0:00:06]} 60. Re4 {[%emt 0:00:11]} Rd6 {[%emt 0:00:04]} 61. Ba4+ {[%emt 0:00:23]} Kd8 {[%emt 0:00:06]} 62. Kc4 {[%emt 0:00:40]} Kc7 {[%emt 0:00:34]} 63. Kc5 {[%emt 0:01:58]} Rf6 {[%emt 0:00:35]} 64. h4 {[%emt 0:01:20]} Rg6 {[%emt 0:00:44]} 65. Be8 {[%emt 0:00:23]} Rf6 {[%emt 0:00:06]} 66. h5 $2 {[%emt 0:00:55]} (66. Kd5 Rd6+ 67. Ke5) 66... Rf5+ {[%emt 0:00:01]} 67. Kd4 $18 {[%emt 0:00:06]} Kd6 {[%emt 0:00:07]} 68. Bg6 {[%emt 0:00:25]} Rd5+ {[%emt 0:00:02]} 69. Kc4 {[%emt 0:00:19]} Rc5+ {[%emt 0:00:05]} 70. Kb4 {[%emt 0:00:06]} Re5 {[%emt 0:00:28]} 71. Rf4 {[%emt 0:00:12]} 1-0

[Event "BL 2016-17"]
[Site "Jenbach"]
[Date "2017.04.21"]
[Round "10"]
[White "Baenziger, Fabian"]
[Black "Ceschia, Ivano"]
[Result "1-0"]
[ECO "C00"]
[WhiteElo "2341"]
[BlackElo "2301"]
[Annotator "NA"]
[PlyCount "93"]
[EventDate "2017.??.??"]
[EventCountry "AUT"]
[SourceTitle "playchess.com"]
[Source "ChessBase"]
[SourceQuality "1"]
[WhiteTeam "Hohenems"]
[BlackTeam "St. Veit"]
[TimeControl "40/5400+30:1800+30"]

1. e4 {[%emt 0:00:00]} e6 {[%emt 0:00:36]} 2. d3 {[%emt 0:00:00]} d5 {[%emt 0:00:09]} 3. Nd2 {[%emt 0:00:05]} c5 {[%emt 0:00:24]} 4. Ngf3 {[%emt 0:00:33]} Nc6 {[%emt 0:00:10]} 5. g3 {[%emt 0:00:06]} g6 {[%emt 0:00:09]} 6. Bg2 {[%emt 0:01:04]} Bg7 {[%emt 0:03:05]} 7. O-O {[%emt 0:00:24]} Nge7 {[%emt 0:00:06]} 8. Re1 {[%emt 0:00:51]} O-O {[%emt 0:00:14]} 9. e5 {[%emt 0:02:00]} Qc7 {[%emt 0:07:25]} 10. Qe2 {[%emt 0:00:59]} b5 {[%emt 0:01:50]} 11. Nf1 {[%emt 0:01:03] A08: King's Indian Attack} Nd4 {[%emt 0:05:59]} (11... Bb7 12. h4 Rac8 13. Bd2 Nf5 14. c3 d4 15. g4 dxc3 16. bxc3 Nfe7 17. Ng3 Rfd8 18. Rad1 b4 {1-0 (36) Venkatesh,M (2506)-Deepan Chakkravarthy,J (2468) Pamplona 2012}) 12. Nxd4 {[%emt 0:00:42]} cxd4 {[%emt 0:00:05]} 13. Bf4 {[%emt 0:00:40]} Bd7 {[%emt 0:00:30]} 14. h4 {[%emt 0:04:58]} Rac8 {[%emt 0:00:43]} 15. Rac1 {[%emt 0:00:42]} Nc6 $146 {[%emt 0:30:29]} (15... b4 16. Nh2 Qa5 17. Qd2 Nc6 18. Ng4 h5 {½-½ (43) Prodanov,D-Velikov,P Varna 1970}) 16. Nh2 {[%emt 0:02:06]} h5 {[%emt 0:00:34]} 17. a3 {[%emt 0:24:35]} b4 {[%emt 0:08:54]} 18. Bxd5 {[%emt 0:02:50]} bxa3 {[%emt 0:01:08]} 19. bxa3 {[%emt 0:00:34]} Qa5 {[%emt 0:05:52]} 20. Bg2 {[%emt 0:01:26]} Ne7 {[%emt 0:09:58]} 21. Nf3 {[%emt 0:01:56]} Nd5 {[%emt 0:06:54]} 22. Bg5 {[%emt 0:01:08]} Nc3 {[%emt 0:04:16]} 23. Qd2 {[%emt 0:00:10]} Bc6 {[%emt 0:00:12]} 24. Be7 {[%emt 0:03:46]} Rfe8 {[%emt 0:01:22]} 25. Bb4 {[%emt 0:00:08]} Qd5 {[%emt 0:03:06]} 26. Qf4 {[%emt 0:01:39]} Na2 {[%emt 0:00:45]} 27. Ra1 {[%emt 0:00:21]} Ba8 {[%emt 0:01:19]} 28. Rxa2 {[%emt 0:04:50]} Qxa2 {[%emt 0:00:20]} 29. Ng5 {[%emt 0:00:05]} Rc7 {[%emt 0:02:02]} 30. Bxa8 {[%emt 0:00:06]} Rxa8 {[%emt 0:00:22]} 31. Ne4 {[%emt 0:00:58]} Qxc2 {[%emt 0:02:10]} 32. Nf6+ {[%emt 0:01:49]} Kh8 {[%emt 0:00:35]} 33. Bd6 {[%emt 0:00:27]} Rc6 {[%emt 0:01:40] [#]} 34. Ne4 $16 {[%emt 0:01:04]} Rb6 {[%emt 0:01:03]} 35. Qxf7 {[%emt 0:01:51]} Rb1 {[%emt 0:00:05]} 36. Rxb1 {[%emt 0:00:24]} Qxb1+ {[%emt 0:00:01]} 37. Kg2 {[%emt 0:00:01]} Qxd3 {[%emt 0:00:46]} 38. Qxg6 {[%emt 0:00:07]} Rc8 {[%emt 0:03:08]} 39. Qxh5+ {[%emt 0:11:30]} Kg8 {[%emt 0:00:02]} 40. Qg6 {[%emt 0:00:00]} Kh8 {[%emt 0:00:17]} 41. h5 {[%emt 0:02:54]} Rc1 {[%emt 0:01:36]} 42. h6 {[%emt 0:00:42]} Qf1+ {[%emt 0:00:12]} 43. Kf3 {[%emt 0:00:04]} Qh1+ {[%emt 0:00:08]} 44. Kg4 {[%emt 0:00:06]} Qxh6 {[%emt 0:05:28]} 45. Qe8+ {[%emt 0:00:16]} Bf8 {[%emt 0:00:19]} 46. Bxf8 {[%emt 0:00:25]} Qh7 {[%emt 0:00:25]} 47. Bh6+ 1-0

[Event "BL 2016-17"]
[Site "Jenbach"]
[Date "2017.04.21"]
[Round "10"]
[White "Repkova, Eva"]
[Black "Lehner, Oliver"]
[Result "0-1"]
[ECO "C50"]
[WhiteElo "2328"]
[BlackElo "2386"]
[Annotator "NA"]
[PlyCount "48"]
[EventDate "2017.??.??"]
[EventCountry "AUT"]
[SourceTitle "playchess.com"]
[Source "ChessBase"]
[SourceQuality "1"]
[WhiteTeam "Bregenz"]
[BlackTeam "Jenbach"]
[TimeControl "40/5400+30:1800+30"]

{[%evp 20,47,-67,-50,32767,-273,-268,-279,-77,-68,32767,32767,-77,32767,-107,-89,-68,-90,0,-249,-232,32767,-564,32767,-756,-2231,32767,-2466,-29986,-29990]} 1. e4 {[%emt 0:00:00]} e5 {[%emt 0:00:10]} 2. Bc4 {[%emt 0:00:00]} Nf6 {[%emt 0:00:10]} 3. d3 {[%emt 0:00:00]} Nc6 {[%emt 0:00:24]} 4. Nf3 {[%emt 0:00:01]} Bc5 {[%emt 0:00:32]} 5. O-O {[%emt 0:01:08]} a6 {[%emt 0:02:43]} 6. c3 {[%emt 0:00:11]} Ba7 {[%emt 0:01:04]} 7. Bg5 {[%emt 0:02:12] C54: Giuoco Piano: 4 c3 Nf6, main lines with 5 d4 and 5 d3} (7. Re1 O-O 8. a4 h6 9. h3 d6 10. Nbd2 Be6 11. b4 Qd7 12. Bxe6 Qxe6 13. Qb3 g5 14. Qxe6 fxe6 {½-½ (84) Howell,D (2644)-Short,N (2679) London 2016}) 7... h6 {[%emt 0:02:26]} 8. Bh4 {[%emt 0:00:40]} d6 {[%emt 0:00:47]} 9. d4 {[%emt 0:00:35]} g5 $146 {[%emt 0:17:45]} (9... Qe7 10. Re1 Bg4 11. d5 Nb8 12. Nbd2 g5 13. Bg3 Nbd7 14. Nf1 Nf8 {0-1 (49) Heim,B (2260)-Gschnitzer,O (2295) Eppingen 1988}) 10. dxe5 {[%emt 0:06:25]} gxh4 {[%emt 0:00:40]} 11. exf6 {[%emt 0:00:04]} Qxf6 {[%emt 0:00:10]} 12. h3 $2 {[%emt 0:04:01]} (12. Nbd2 $17 {was called for.}) 12... Rg8 {[%emt 0:04:43]} 13. Kh1 {[%emt 0:00:05] [#]} Bd7 $2 {[%emt 0:03:46]} (13... Qg6 $1 $19 {[%csl Gg8][%cal Rg6g2] has better winning chances.} 14. Nxh4 Qg5) 14. Nbd2 {[%emt 0:00:12]} O-O-O {[%emt 0:00:36]} 15. Qe2 {[%emt 0:05:25]} Rg7 {[%emt 0:11:47]} 16. a4 {[%emt 0:02:21]} Rdg8 {[%emt 0:01:19]} 17. Rg1 {[%emt 0:00:10]} Ne7 {[%emt 0:09:44]} 18. e5 {[%emt 0:04:09] [#]} dxe5 {[%emt 0:00:17]} ({Black should try} 18... Qf4 $1 $17) 19. Ne4 $2 {[%emt 0:02:01]} (19. Nxe5 $11 {and White is okay.} Bf5 20. Ndf3) 19... Qf4 {[%emt 0:02:12]} 20. Bxa6 {[%emt 0:02:07]} bxa6 {[%emt 0:04:55]} 21. Qxa6+ {[%emt 0:00:06]} Kb8 {[%emt 0:00:37]} 22. Nd6 {[%emt 0:02:08]} Bc6 {[%emt 0:05:14]} 23. Nb5 {[%emt 0:00:34]} Bxf2 {[%emt 0:01:27]} 24. Nfd4 {[%emt 0:00:07]} exd4 {[%emt 0:04:19]} 0-1

[Event "BL 2016-17"]
[Site "Jenbach"]
[Date "2017.04.21"]
[Round "10"]
[White "Wallner, Joachim"]
[Black "Blohberger, Felix"]
[Result "0-1"]
[ECO "A01"]
[WhiteElo "2322"]
[BlackElo "2265"]
[Annotator "NA"]
[PlyCount "78"]
[EventDate "2017.??.??"]
[EventCountry "AUT"]
[SourceTitle "playchess.com"]
[Source "ChessBase"]
[SourceQuality "1"]
[WhiteTeam "Wulkaprodersdorf"]
[BlackTeam "Wien-SK Ottakring"]
[TimeControl "40/5400+30:1800+30"]

1. b3 {[%emt 0:00:00]} e5 {[%emt 0:00:04]} 2. Bb2 {[%emt 0:00:00]} Nc6 {[%emt 0:00:03]} 3. e3 {[%emt 0:00:00]} Nf6 {[%emt 0:00:04]} 4. Bb5 {[%emt 0:00:14]} e4 {[%emt 0:00:04] A01: Nimzowitsch-Larsen Opening} (4... Bd6 5. Na3 e4 6. Nc4 Be7 7. Bxc6 bxc6 8. Ne2 O-O 9. O-O a5 10. d3 a4 11. Ng3 d5 12. Ne5 Qe8 13. dxe4 Nxe4 {½-½ (30) Rapport,R (2702)-Karjakin,S (2785) Wijk aan Zee 2017}) 5. d3 {[%emt 0:02:29]} a6 {[%emt 0:00:05]} 6. Bxc6 {[%emt 0:00:48]} dxc6 {[%emt 0:00:04]} 7. Ne2 {[%emt 0:05:13]} Bf5 {[%emt 0:06:04]} 8. Ng3 {[%emt 0:04:26]} Bg6 {[%emt 0:00:21]} 9. d4 $146 {[%emt 0:10:22]} (9. dxe4 Qxd1+ 10. Kxd1 O-O-O+ 11. Nd2 Ng4 12. Rf1 Nxh2 {0-1 (35) Olisov,A (2187)-Sharafiev,A (2414) Uljanovsk 2012}) 9... h5 {[%emt 0:01:55]} 10. h4 {[%emt 0:09:35]} Ng4 {[%emt 0:22:57]} 11. Nc3 {[%emt 0:04:37]} Qe7 {[%emt 0:22:09]} 12. Qe2 {[%emt 0:04:36]} O-O-O {[%emt 0:00:23]} 13. O-O-O {[%emt 0:00:35]} Qe6 {[%emt 0:01:26]} 14. Nf1 {[%emt 0:12:01]} Bb4 {[%emt 0:05:06]} 15. Kb1 {[%emt 0:06:39]} Qf5 {[%emt 0:02:20]} 16. f3 {[%emt 0:01:17]} Nf6 {[%emt 0:00:12]} 17. Nxe4 {[%emt 0:05:34]} Nxe4 {[%emt 0:00:12]} 18. fxe4 {[%emt 0:00:09]} Qxe4 {[%emt 0:00:12]} 19. Ng3 $15 {[%emt 0:00:18]} Qe7 {[%emt 0:04:15]} 20. e4 {[%emt 0:00:53]} f6 {[%emt 0:09:09]} 21. Qf3 {[%emt 0:06:29]} Rhe8 {[%emt 0:01:20]} 22. Nxh5 {[%emt 0:03:29]} Qxe4 {[%emt 0:11:21]} 23. Qxe4 {[%emt 0:00:06]} Rxe4 {[%emt 0:00:58]} 24. Nxg7 {[%emt 0:07:26]} Re2 {[%emt 0:00:05]} 25. Rdf1 {[%emt 0:02:43]} Bxc2+ {[%emt 0:02:44]} 26. Ka1 {[%emt 0:00:20]} c5 {[%emt 0:04:30]} 27. a3 {[%emt 0:00:48]} Ba5 {[%emt 0:01:25]} 28. Nf5 {[%emt 0:00:15]} Bxb3 {[%emt 0:00:44]} 29. g4 {[%emt 0:00:48]} c4 {[%emt 0:01:54]} 30. Rh3 {[%emt 0:01:17]} Rde8 {[%emt 0:00:18]} 31. Bc3 {[%emt 0:00:32]} Ra2+ {[%emt 0:02:01]} 32. Kb1 {[%emt 0:00:01]} Bxc3 {[%emt 0:01:04]} 33. Rxc3 {[%emt 0:00:03]} Ree2 {[%emt 0:00:08]} 34. Ne3 {[%emt 0:02:00]} Reb2+ {[%emt 0:00:12]} 35. Kc1 {[%emt 0:00:07]} Rh2 {[%emt 0:00:04]} 36. Kb1 {[%emt 0:00:17]} Rxa3 {[%emt 0:00:55]} 37. Nc2 {[%emt 0:01:21]} Ba2+ {[%emt 0:00:54]} 38. Kb2 {[%emt 0:00:00]} Rb3+ {[%emt 0:00:04]} 39. Rxb3 {[%emt 0:00:00]} cxb3 {[%emt 0:00:27]} 0-1